{"text_format":"1","workbook":"xlsx","n_sheets":2,"sheets":["Направление 2","Лист1"],"not_rendered":{"charts":0,"images":1,"macros":1,"external_links":0,"defined_names":0,"comments":0,"pivot_tables":0},"unopened":[],"bounds":{"document_bytes":16777216,"sheet_cells":100000,"rows_first":2000,"rows_last":500,"rows_between":2000,"halvings":0,"cell_chars":16384,"cell_head_chars":4096},"cells_cut":0,"cells_raw":0,"read":"whole","date_system":"1900"}

{"sheet":"Направление 2","index":0,"n_rows":76,"n_cols":93,"rows_kept":76,"cut":false,"hidden":false,"merged":[[5,3,5,20],[4,3,4,20],[6,3,6,20],[7,3,7,20],[4,21,4,88],[7,21,7,88],[6,21,6,88],[5,21,5,88]]}
[null,null,null,null,null,null,null,null,null,null,null,null,null,null,null,null,null,null,null,null,null,null,null,null,null,null,null,null,null,null,null,null,null,null,null,null,null,null,null,null,null,null,null,null,null,null,null,null,null,null,null,null,null,null,null,null,null,null,null,null,null,null,null,null,null,null,null,null,null,null,null,null,null,null,null,null,null,null,null,null,null,null,null,null,null,null,null,null,null,"КДЛ ОГАУЗ ИГДБ №2"]
[null,null,1,2,3,4,5,6,7,8,9,10,11,12,13,14,15,16,17,18,19,20,21,22,23,24,25,26,27,28,29,30,31,32,33,34,35,36,37,38,39,40,41,42,43,44,45,46,47,48,49,50,51,52,53,54,55,56,57,58,59,60,61,62,63,64,65,66,67,68,69,70,71,72,73,74,75,76,77,78,79,80,81,82,83,84,85,86,87,88]
[null,null,null,null,null,null,null,null,null,null,null,null,null,null,null,null,null,null,null,null,null,null,null,null,null,null,null,null,null,null,null,null,null,null,null,null,null,null,null,null,null,null,null,null,null,"НАПРАВЛЕНИЕ",null,null,null,null,null,null,null,null,null,null,null,null,null,null,null,null,null,null,null,null,null,null,null,null,null,null,null,null,null,null,null,null,null,null,null,null,null,null,null,null,null,null,null,null,null,null,"Общий анализ крови"]
[null,null,null,null,null,null,null,null,null,null,null,null,null,null,null,null,null,null,null,null,null,null,null,null,null,null,null,null,null,null,null,null,null,null,null,null,null,null,null,null,null,null,null,null,null,{"$f":"CO3","v":"Общий анализ крови"}]
[null,null,null,"ФИО"]
[null,null,null,"Дата рождения"]
[null,null,null,"Номер карты"]
[null,null,null,"Участок"]
[]
["Биохимический анализ крови (полный)",{"$f":"IF(A10=$CO$3,FALSE,TRUE)","v":true},null,"Название теста",null,null,null,null,null,null,null,null,null,null,null,null,null,null,null,null,null,null,null,null,null,null,null,null,null,null,null,null,null,null,null,null,null,null,null,null,null,null,null,null,"Результат",null,null,null,null,null,null,null,null,null,null,null,null,null,null,null,null,null,null,null,null,null,null,null,null,null,"Рефересные значения ",null,null,null,null,null,null,null,null,null,null,null,null,null,null,null,null,null,"Ед. измерения "]
["Биохимический анализ крови (полный)",{"$f":"IF(A11=$CO$3,FALSE,TRUE)","v":true},null,"Билирубин общий",null,null,null,null,null,null,null,null,null,null,null,null,null,null,null,null,null,null,null,null,null,null,null,null,null,null,null,null,null,null,null,null,null,null,null,null,null,null,null,null,null,null,null,null,null,null,null,null,null,null,null,null,null,null,null,null,null,null,null,null,null,null,null,null,null,null,null,null,null,null,null,null,null,null,null,null,null,null,null,null,null,null,null,null,"Мкмоль/л"]
["Биохимический анализ крови (полный)",true,null," - прямой",null,null,null,null,null,null,null,null,null,null,null,null,null,null,null,null,null,null,null,null,null,null,null,null,null,null,null,null,null,null,null,null,null,null,null,null,null,null,null,null,null,null,null,null,null,null,null,null,null,null,null,null,null,null,null,null,null,null,null,null,null,null,null,null,null,null,null,null,null,null,null,null,null,null,null,null,null,null,null,null,null,null,null,null,"Мкмоль/л"]
["Биохимический анализ крови (полный)",true,null," - непрямой",null,null,null,null,null,null,null,null,null,null,null,null,null,null,null,null,null,null,null,null,null,null,null,null,null,null,null,null,null,null,null,null,null,null,null,null,null,null,null,null,null,null,null,null,null,null,null,null,null,null,null,null,null,null,null,null,null,null,null,null,null,null,null,null,null,null,null,null,null,null,null,null,null,null,null,null,null,null,null,null,null,null,null,null,"Мкмоль/л"]
["Биохимический анализ крови (полный)",true,null,"АЛТ",null,null,null,null,null,null,null,null,null,null,null,null,null,null,null,null,null,null,null,null,null,null,null,null,null,null,null,null,null,null,null,null,null,null,null,null,null,null,null,null,null,null,null,null,null,null,null,null,null,null,null,null,null,null,null,null,null,null,null,null,null,null,null,null,null,null,null,null,null,null,null,null,null,null,null,null,null,null,null,null,null,null,null,null,"Е/л"]
["Биохимический анализ крови (полный)",true,null,"АСТ",null,null,null,null,null,null,null,null,null,null,null,null,null,null,null,null,null,null,null,null,null,null,null,null,null,null,null,null,null,null,null,null,null,null,null,null,null,null,null,null,null,null,null,null,null,null,null,null,null,null,null,null,null,null,null,null,null,null,null,null,null,null,null,null,null,null,null,null,null,null,null,null,null,null,null,null,null,null,null,null,null,null,null,null,"Е/л"]
["Биохимический анализ крови (полный)",true,null,"Щелочная фосфатаза",null,null,null,null,null,null,null,null,null,null,null,null,null,null,null,null,null,null,null,null,null,null,null,null,null,null,null,null,null,null,null,null,null,null,null,null,null,null,null,null,null,null,null,null,null,null,null,null,null,null,null,null,null,null,null,null,null,null,null,null,null,null,null,null,null,null,null,null,null,null,null,null,null,null,null,null,null,null,null,null,null,null,null,null,"Е/л"]
["Биохимический анализ крови (полный)",true,null,"Амилаза",null,null,null,null,null,null,null,null,null,null,null,null,null,null,null,null,null,null,null,null,null,null,null,null,null,null,null,null,null,null,null,null,null,null,null,null,null,null,null,null,null,null,null,null,null,null,null,null,null,null,null,null,null,null,null,null,null,null,null,null,null,null,null,null,null,null,null,null,null,null,null,null,null,null,null,null,null,null,null,null,null,null,null,null,"Е/л"]
["Биохимический анализ крови (полный)",true,null,"Холестерин ",null,null,null,null,null,null,null,null,null,null,null,null,null,null,null,null,null,null,null,null,null,null,null,null,null,null,null,null,null,null,null,null,null,null,null,null,null,null,null,null,null,null,null,null,null,null,null,null,null,null,null,null,null,null,null,null,null,null,null,null,null,null,null,null,null,null,null,null,null,null,null,null,null,null,null,null,null,null,null,null,null,null,null,null,"Ммоль/л"]
["Биохимический анализ крови (полный)",true,null,"ЛПВП",null,null,null,null,null,null,null,null,null,null,null,null,null,null,null,null,null,null,null,null,null,null,null,null,null,null,null,null,null,null,null,null,null,null,null,null,null,null,null,null,null,null,null,null,null,null,null,null,null,null,null,null,null,null,null,null,null,null,null,null,null,null,null,null,null,null,null,null,null,null,null,null,null,null,null,null,null,null,null,null,null,null,null,null,"Ммоль/л"]
["Биохимический анализ крови (полный)",true,null,"ЛПНП",null,null,null,null,null,null,null,null,null,null,null,null,null,null,null,null,null,null,null,null,null,null,null,null,null,null,null,null,null,null,null,null,null,null,null,null,null,null,null,null,null,null,null,null,null,null,null,null,null,null,null,null,null,null,null,null,null,null,null,null,null,null,null,null,null,null,null,null,null,null,null,null,null,null,null,null,null,null,null,null,null,null,null,null,"Ммоль/л"]
["Биохимический анализ крови (полный)",true,null,"Триглицериды",null,null,null,null,null,null,null,null,null,null,null,null,null,null,null,null,null,null,null,null,null,null,null,null,null,null,null,null,null,null,null,null,null,null,null,null,null,null,null,null,null,null,null,null,null,null,null,null,null,null,null,null,null,null,null,null,null,null,null,null,null,null,null,null,null,null,null,null,null,null,null,null,null,null,null,null,null,null,null,null,null,null,null,null,"Ммоль/л"]
["Биохимический анализ крови (полный)",true,null,"Глюкоза",null,null,null,null,null,null,null,null,null,null,null,null,null,null,null,null,null,null,null,null,null,null,null,null,null,null,null,null,null,null,null,null,null,null,null,null,null,null,null,null,null,null,null,null,null,null,null,null,null,null,null,null,null,null,null,null,null,null,null,null,null,null,null,null,null,null,null,null,null,null,null,null,null,null,null,null,null,null,null,null,null,null,null,null,"Ммоль/л"]
["Биохимический анализ крови (полный)",true,null,"Мочевина",null,null,null,null,null,null,null,null,null,null,null,null,null,null,null,null,null,null,null,null,null,null,null,null,null,null,null,null,null,null,null,null,null,null,null,null,null,null,null,null,null,null,null,null,null,null,null,null,null,null,null,null,null,null,null,null,null,null,null,null,null,null,null,null,null,null,null,null,null,null,null,null,null,null,null,null,null,null,null,null,null,null,null,null,"Ммоль/л"]
["Биохимический анализ крови (полный)",true,null,"Креатинин",null,null,null,null,null,null,null,null,null,null,null,null,null,null,null,null,null,null,null,null,null,null,null,null,null,null,null,null,null,null,null,null,null,null,null,null,null,null,null,null,null,null,null,null,null,null,null,null,null,null,null,null,null,null,null,null,null,null,null,null,null,null,null,null,null,null,null,null,null,null,null,null,null,null,null,null,null,null,null,null,null,null,null,null,"Мкмоль/л"]
["Биохимический анализ крови (полный)",true,null,"Общий белок",null,null,null,null,null,null,null,null,null,null,null,null,null,null,null,null,null,null,null,null,null,null,null,null,null,null,null,null,null,null,null,null,null,null,null,null,null,null,null,null,null,null,null,null,null,null,null,null,null,null,null,null,null,null,null,null,null,null,null,null,null,null,null,null,null,null,null,null,null,null,null,null,null,null,null,null,null,null,null,null,null,null,null,null,"г/л"]
["Биохимический анализ крови (полный)",true,null,"Альбумин",null,null,null,null,null,null,null,null,null,null,null,null,null,null,null,null,null,null,null,null,null,null,null,null,null,null,null,null,null,null,null,null,null,null,null,null,null,null,null,null,null,null,null,null,null,null,null,null,null,null,null,null,null,null,null,null,null,null,null,null,null,null,null,null,null,null,null,null,null,null,null,null,null,null,null,null,null,null,null,null,null,null,null,null,"г/л"]
["Биохимический анализ крови (полный)",true,null,"К",null,null,null,null,null,null,null,null,null,null,null,null,null,null,null,null,null,null,null,null,null,null,null,null,null,null,null,null,null,null,null,null,null,null,null,null,null,null,null,null,null,null,null,null,null,null,null,null,null,null,null,null,null,null,null,null,null,null,null,null,null,null,null,null,null,null,null,null,null,null,null,null,null,null,null,null,null,null,null,null,null,null,null,null,"Ммоль/л"]
["Биохимический анализ крови (полный)",true,null,"Са",null,null,null,null,null,null,null,null,null,null,null,null,null,null,null,null,null,null,null,null,null,null,null,null,null,null,null,null,null,null,null,null,null,null,null,null,null,null,null,null,null,null,null,null,null,null,null,null,null,null,null,null,null,null,null,null,null,null,null,null,null,null,null,null,null,null,null,null,null,null,null,null,null,null,null,null,null,null,null,null,null,null,null,null,"Ммоль/л"]
["Биохимический анализ крови (полный)",true,null,"Fe",null,null,null,null,null,null,null,null,null,null,null,null,null,null,null,null,null,null,null,null,null,null,null,null,null,null,null,null,null,null,null,null,null,null,null,null,null,null,null,null,null,null,null,null,null,null,null,null,null,null,null,null,null,null,null,null,null,null,null,null,null,null,null,null,null,null,null,null,null,null,null,null,null,null,null,null,null,null,null,null,null,null,null,null,"Мкмоль/л"]
["Биохимический анализ крови (полный)",true,null,"Mg",null,null,null,null,null,null,null,null,null,null,null,null,null,null,null,null,null,null,null,null,null,null,null,null,null,null,null,null,null,null,null,null,null,null,null,null,null,null,null,null,null,null,null,null,null,null,null,null,null,null,null,null,null,null,null,null,null,null,null,null,null,null,null,null,null,null,null,null,null,null,null,null,null,null,null,null,null,null,null,null,null,null,null,null,"Ммоль/л"]
["Биохимический анализ крови (полный)",true,null,"Cl",null,null,null,null,null,null,null,null,null,null,null,null,null,null,null,null,null,null,null,null,null,null,null,null,null,null,null,null,null,null,null,null,null,null,null,null,null,null,null,null,null,null,null,null,null,null,null,null,null,null,null,null,null,null,null,null,null,null,null,null,null,null,null,null,null,null,null,null,null,null,null,null,null,null,null,null,null,null,null,null,null,null,null,null,"Ммоль/л"]
["Биохимический анализ крови (полный)",true,null,"СРБ",null,null,null,null,null,null,null,null,null,null,null,null,null,null,null,null,null,null,null,null,null,null,null,null,null,null,null,null,null,null,null,null,null,null,null,null,null,null,null,null,null,null,null,null,null,null,null,null,null,null,null,null,null,null,null,null,null,null,null,null,null,null,null,null,null,null,null,null,null,null,null,null,null,null,null,null,null,null,null,null,null,null,null,null,"Мг/мл"]
["Биохимический анализ крови (полный)",true,null,"РФ",null,null,null,null,null,null,null,null,null,null,null,null,null,null,null,null,null,null,null,null,null,null,null,null,null,null,null,null,null,null,null,null,null,null,null,null,null,null,null,null,null,null,null,null,null,null,null,null,null,null,null,null,null,null,null,null,null,null,null,null,null,null,null,null,null,null,null,null,null,null,null,null,null,null,null,null,null,null,null,null,null,null,null,null,"Мг/мл"]
["Биохимический анализ крови (полный)",true,null,"АСЛО",null,null,null,null,null,null,null,null,null,null,null,null,null,null,null,null,null,null,null,null,null,null,null,null,null,null,null,null,null,null,null,null,null,null,null,null,null,null,null,null,null,null,null,null,null,null,null,null,null,null,null,null,null,null,null,null,null,null,null,null,null,null,null,null,null,null,null,null,null,null,null,null,null,null,null,null,null,null,null,null,null,null,null,null,"Ме/мл"]
["Анализ крови на глюкозу",true]
["Анализ крови на глюкозу",true,null,"Результаты:"]
["Анализ крови на ревмопробы",true,null,"Результаты:"]
["Анализ крови на ревмопробы",true,null,"СРБ"]
["Анализ крови на ревмопробы",true,null,"АСЛО"]
["Анализ крови на ревмопробы",true,null,"РФ"]
["Биохимический анализ крови (сокращ.)",true,null,"Результаты:"]
["Биохимический анализ крови (сокращ.)",true,null,"Мочевина"]
["Биохимический анализ крови (сокращ.)",true,null,"Креатин"]
["Биохимический анализ крови (сокращ.)",true,null,"Глюкоза"]
["Копрограмма",true,null,"ДДУ/школа"]
["РМП",true]
["РМП",true,null,"Результат:"]
["Риноцитограмма",true,null,"Результаты:"]
["Риноцитограмма",true,null,"Нейтрофилы"]
["Риноцитограмма",true,null,"Эозинофилы"]
["Риноцитограмма",true,null,"прочее"]
["Анализ мочи по Нечипоренко",true,null,"Результаты:"]
["Анализ мочи по Нечипоренко",true,null,"Лейкоциты"]
["Анализ мочи по Нечипоренко",true,null,"Эритроциты"]
["Анализ мочи по Нечипоренко",true,null,"прочее"]
["Соскоб на энтеробиоз",true,null,"ДДУ/школа"]
["Соскоб на энтеробиоз",true]
["Соскоб на энтеробиоз",true,null,"Результат:"]
["Кал на я/г и кишечные протозоозы",true,null,"ДДУ/школа"]
["Кал на я/г и кишечные протозоозы",true]
["Кал на я/г и кишечные протозоозы",true,null,"Результат:"]
[]
[]
[null,null,null,null,null,null,null,null,null,null,null,null,null,null,null,null,null,null,null,null,null,null,null,null,null,null,null,null,null,null,null,null,null,null,null,null,null,null,null,null,null,null,null,null,null,null,null,null,null,null,null,null,null,null,null,null,null,null,null,null,null,null,null,null,null,null,null,null,null,null,null,null,null,null,null,null,null,null,null,null,null,null,null,null,null,null,null,null,null,null,null,null,"Анализ крови на глюкозу"]
[null,null,null,null,null,null,null,null,null,null,null,null,null,null,null,null,null,null,null,null,null,null,null,null,null,null,null,null,null,null,null,null,null,null,null,null,null,null,null,null,null,null,null,null,null,null,null,null,null,null,null,null,null,null,null,null,null,null,null,null,null,null,null,null,null,null,null,null,null,null,null,null,null,null,null,null,null,null,null,null,null,null,null,null,null,null,null,null,null,null,null,null,"Анализ крови на ревмопробы"]
[null,null,null,null,null,null,null,null,null,null,null,null,null,null,null,null,null,null,null,null,null,null,null,null,null,null,null,null,null,null,null,null,null,null,null,null,null,null,null,null,null,null,null,null,null,null,null,null,null,null,null,null,null,null,null,null,null,null,null,null,null,null,null,null,null,null,null,null,null,null,null,null,null,null,null,null,null,null,null,null,null,null,null,null,null,null,null,null,null,null,null,null,"Анализ мочи по Зимницкому"]
[null,null,null,null,null,null,null,null,null,null,null,null,null,null,null,null,null,null,null,null,null,null,null,null,null,null,null,null,null,null,null,null,null,null,null,null,null,null,null,null,null,null,null,null,null,null,null,null,null,null,null,null,null,null,null,null,null,null,null,null,null,null,null,null,null,null,null,null,null,null,null,null,null,null,null,null,null,null,null,null,null,null,null,null,null,null,null,null,null,null,null,null,"Анализ мочи по Нечипоренко"]
[null,null,null,null,null,null,null,null,null,null,null,null,null,null,null,null,null,null,null,null,null,null,null,null,null,null,null,null,null,null,null,null,null,null,null,null,null,null,null,null,null,null,null,null,null,null,null,null,null,null,null,null,null,null,null,null,null,null,null,null,null,null,null,null,null,null,null,null,null,null,null,null,null,null,null,null,null,null,null,null,null,null,null,null,null,null,null,null,null,null,null,null,"Биохимический анализ крови (полный)"]
[null,null,null,null,null,null,null,null,null,null,null,null,null,null,null,null,null,null,null,null,null,null,null,null,null,null,null,null,null,null,null,null,null,null,null,null,null,null,null,null,null,null,null,null,null,null,null,null,null,null,null,null,null,null,null,null,null,null,null,null,null,null,null,null,null,null,null,null,null,null,null,null,null,null,null,null,null,null,null,null,null,null,null,null,null,null,null,null,null,null,null,null,"Биохимический анализ крови (сокращ.)"]
[null,null,null,null,null,null,null,null,null,null,null,null,null,null,null,null,null,null,null,null,null,null,null,null,null,null,null,null,null,null,null,null,null,null,null,null,null,null,null,null,null,null,null,null,null,null,null,null,null,null,null,null,null,null,null,null,null,null,null,null,null,null,null,null,null,null,null,null,null,null,null,null,null,null,null,null,null,null,null,null,null,null,null,null,null,null,null,null,null,null,null,null,"Кал на я/г и кишечные протозоозы"]
[null,null,null,null,null,null,null,null,null,null,null,null,null,null,null,null,null,null,null,null,null,null,null,null,null,null,null,null,null,null,null,null,null,null,null,null,null,null,null,null,null,null,null,null,null,null,null,null,null,null,null,null,null,null,null,null,null,null,null,null,null,null,null,null,null,null,null,null,null,null,null,null,null,null,null,null,null,null,null,null,null,null,null,null,null,null,null,null,null,null,null,null,"Копрограмма"]
[null,null,null,null,null,null,null,null,null,null,null,null,null,null,null,null,null,null,null,null,null,null,null,null,null,null,null,null,null,null,null,null,null,null,null,null,null,null,null,null,null,null,null,null,null,null,null,null,null,null,null,null,null,null,null,null,null,null,null,null,null,null,null,null,null,null,null,null,null,null,null,null,null,null,null,null,null,null,null,null,null,null,null,null,null,null,null,null,null,null,null,null,"Общий анализ крови"]
[null,null,null,null,null,null,null,null,null,null,null,null,null,null,null,null,null,null,null,null,null,null,null,null,null,null,null,null,null,null,null,null,null,null,null,null,null,null,null,null,null,null,null,null,null,null,null,null,null,null,null,null,null,null,null,null,null,null,null,null,null,null,null,null,null,null,null,null,null,null,null,null,null,null,null,null,null,null,null,null,null,null,null,null,null,null,null,null,null,null,null,null,"Общий анализ мочи"]
[null,null,null,null,null,null,null,null,null,null,null,null,null,null,null,null,null,null,null,null,null,null,null,null,null,null,null,null,null,null,null,null,null,null,null,null,null,null,null,null,null,null,null,null,null,null,null,null,null,null,null,null,null,null,null,null,null,null,null,null,null,null,null,null,null,null,null,null,null,null,null,null,null,null,null,null,null,null,null,null,null,null,null,null,null,null,null,null,null,null,null,null,"Риноцитограмма"]
[null,null,null,null,null,null,null,null,null,null,null,null,null,null,null,null,null,null,null,null,null,null,null,null,null,null,null,null,null,null,null,null,null,null,null,null,null,null,null,null,null,null,null,null,null,null,null,null,null,null,null,null,null,null,null,null,null,null,null,null,null,null,null,null,null,null,null,null,null,null,null,null,null,null,null,null,null,null,null,null,null,null,null,null,null,null,null,null,null,null,null,null,"РМП"]
[null,null,null,null,null,null,null,null,null,null,null,null,null,null,null,null,null,null,null,null,null,null,null,null,null,null,null,null,null,null,null,null,null,null,null,null,null,null,null,null,null,null,null,null,null,null,null,null,null,null,null,null,null,null,null,null,null,null,null,null,null,null,null,null,null,null,null,null,null,null,null,null,null,null,null,null,null,null,null,null,null,null,null,null,null,null,null,null,null,null,null,null,"Соскоб на энтеробиоз"]

{"sheet":"Лист1","index":1,"n_rows":55,"n_cols":3,"rows_kept":55,"cut":false,"hidden":false,"merged":[]}
["Наименование анализа","Необходимая подготовка",{"$f":"TRIM(B1)","v":"Необходимая подготовка"}]
["Общий анализ крови ","утром натощак",{"$f":"TRIM(B2)","v":"утром натощак"}]
[null,null,""]
["Глюкоза капиллярной крови ","утром натощак","утром натощак"]
[null,null,""]
["Биохимический анализ крови","утром натощак","утром натощак"]
[null,null,""]
["Общий анализ мочи","Мочу собирают в одноразовый пластиковый контейнер. Перед сбором мочи надо произвести гигиенический туалет наружных половых органов, затем собрать порцию утренней мочи, выделенную сразу же после сна.","Мочу собирают в одноразовый пластиковый контейнер. Перед сбором мочи надо произвести гигиенический туалет наружных половых органов, затем собрать порцию утренней мочи, выделенную сразу же после сна."]
[null,null,""]
["Анализ мочи по Нечипоренко","Подготовка к исследованию.","Подготовка к исследованию."]
["Анализ мочи по Нечипоренко","Мочу собирают в одноразовый пластиковый контейнер. Накануне необходимо воздержаться от употребления алкоголя, эмоциональных и физических нагрузок, не употреблять овощи и фрукты, которые могут изменить цвет мочи, не принимать мочегонные препараты. Не рекомендуется сдавать анализ мочи в течение 5-7 дней после цистоскопии и женщинам во время менструации.","Мочу собирают в одноразовый пластиковый контейнер. Накануне необходимо воздержаться от употребления алкоголя, эмоциональных и физических нагрузок, не употреблять овощи и фрукты, которые могут изменить цвет мочи, не принимать мочегонные препараты. Не рекомендуется сдавать анализ мочи в течение 5-7 дней после цистоскопии и женщинам во время менструации."]
["Анализ мочи по Нечипоренко","Процедура сбора мочи.","Процедура сбора мочи."]
["Анализ мочи по Нечипоренко","Мочу собирают в одноразовый пластиковый контейнер. Перед сбором мочи надо произвести гигиенический туалет наружных половых органов, затем собрать среднюю порцию утренней мочи, выделенную сразу же после сна. Для этого первое количество выделенной мочи (15-20 миллилитров) пропускают, а среднюю порцию мочи помещают в подготовленный чистый и сухой контейнер.","Мочу собирают в одноразовый пластиковый контейнер. Перед сбором мочи надо произвести гигиенический туалет наружных половых органов, затем собрать среднюю порцию утренней мочи, выделенную сразу же после сна. Для этого первое количество выделенной мочи (15-20 миллилитров) пропускают, а среднюю порцию мочи помещают в подготовленный чистый и сухой контейнер."]
[null,null,""]
["Анализ мочи по Зимницкому","Подготовка к исследованию.","Подготовка к исследованию."]
["Анализ мочи по Зимницкому","Мочу собирают в одноразовый пластиковый контейнер. Анализ мочи по   Зимницкому проводится   в условиях обычного   питьевого режима и характера питания (не допускается     избыточное     потребление     жидкости). Необходимо   исключить   в   день   исследования   прием мочегонных средств.","Мочу собирают в одноразовый пластиковый контейнер. Анализ мочи по Зимницкому проводится в условиях обычного питьевого режима и характера питания (не допускается избыточное потребление жидкости). Необходимо исключить в день исследования прием мочегонных средств."]
["Анализ мочи по Зимницкому","Процедура сбора мочи.","Процедура сбора мочи."]
["Анализ мочи по Зимницкому","Мочу для   анализа мочи по   Зимницкому   собирают в течение суток (24 ч). От момента пробуждения до 9.00 пациент мочится в унитаз (в 9.00 необходимо полностью опорожнить мочевой пузырь!). Затем, начиная с 9 часов утра, собирается 8 порций мочи:","Мочу для анализа мочи по Зимницкому собирают в течение суток (24 ч). От момента пробуждения до 9.00 пациент мочится в унитаз (в 9.00 необходимо полностью опорожнить мочевой пузырь!). Затем, начиная с 9 часов утра, собирается 8 порций мочи:"]
["Анализ мочи по Зимницкому","- 1я порция - собирается вся моча с 09.00 до 12.00","- 1я порция - собирается вся моча с 09.00 до 12.00"]
["Анализ мочи по Зимницкому","- 2я порция - собирается вся моча с 12.00 до 15.00","- 2я порция - собирается вся моча с 12.00 до 15.00"]
["Анализ мочи по Зимницкому","- Зя порция - собирается вся моча с 15.00 до 18.00","- Зя порция - собирается вся моча с 15.00 до 18.00"]
["Анализ мочи по Зимницкому","- 4я порция - собирается вся моча с 18.00 до 21.00","- 4я порция - собирается вся моча с 18.00 до 21.00"]
["Анализ мочи по Зимницкому","- 5я порция - собирается вся моча с 21.00 до 24.00","- 5я порция - собирается вся моча с 21.00 до 24.00"]
["Анализ мочи по Зимницкому","- 6я порция - собирается вся моча с 24.00 до 03.00","- 6я порция - собирается вся моча с 24.00 до 03.00"]
["Анализ мочи по Зимницкому","- 7я порция - собирается вся моча с 03.00 до 06.00","- 7я порция - собирается вся моча с 03.00 до 06.00"]
["Анализ мочи по Зимницкому","- 8я порция - собирается вся моча с 06.00 до 09.00","- 8я порция - собирается вся моча с 06.00 до 09.00"]
["Анализ мочи по Зимницкому","- мочиться 3 часа до взятия материала;","- мочиться 3 часа до взятия материала;"]
["Анализ мочи по Зимницкому","- применять дезинфицирующие растворы;","- применять дезинфицирующие растворы;"]
["Анализ мочи по Зимницкому","- использовать антибактериальное мыло;","- использовать антибактериальное мыло;"]
["Анализ мочи по Зимницкому","- жить половой жизнью менее чем за 36 часов до взятия материала;","- жить половой жизнью менее чем за 36 часов до взятия материала;"]
["Анализ мочи по Зимницкому","- применять антибактериальные средства или уросептики внутрь (при необходимости, предупредить об этом).","- применять антибактериальные средства или уросептики внутрь (при необходимости, предупредить об этом)."]
["Анализ мочи по Зимницкому","- мочиться 3 часа до взятия материала, если берется анализ из уретры;","- мочиться 3 часа до взятия материала, если берется анализ из уретры;"]
["Анализ мочи по Зимницкому","- применять вагинальные дезинфицирующие растворы;","- применять вагинальные дезинфицирующие растворы;"]
["Анализ мочи по Зимницкому","- применять любые вагинальные свечи менее чем за 36 часов до взятия материала;","- применять любые вагинальные свечи менее чем за 36 часов до взятия материала;"]
["Анализ мочи по Зимницкому","- использовать антибактериальное мыло;","- использовать антибактериальное мыло;"]
["Анализ мочи по Зимницкому","- жить половой жизнью менее чем за 36 часов до взятия материала;","- жить половой жизнью менее чем за 36 часов до взятия материала;"]
["Анализ мочи по Зимницкому","- применять вагинальные антибактериальные средства;","- применять вагинальные антибактериальные средства;"]
["Анализ мочи по Зимницкому","- применять антибактериальные средства или уросептики внутрь (при необходимости, предупредить об этом);","- применять антибактериальные средства или уросептики внутрь (при необходимости, предупредить об этом);"]
["Анализ мочи по Зимницкому","- сдавать анализы во время менструации;","- сдавать анализы во время менструации;"]
["Анализ мочи по Зимницкому","- спринцеваться.","- спринцеваться."]
["Анализ мочи по Зимницкому","Перед проведением процедуры следует воздержаться от полового акта в течение двух дней;","Перед проведением процедуры следует воздержаться от полового акта в течение двух дней;"]
["Анализ мочи по Зимницкому","Перед кольпоскопией нельзя пользоваться увлажняющими интимными кремами;","Перед кольпоскопией нельзя пользоваться увлажняющими интимными кремами;"]
["Анализ мочи по Зимницкому","При подготовке к кольпоскопии нельзя использовать вагинальные таблетки, спреи и свечи. Исключение составляют только те средства, которые вам порекомендовал сам врач-гинеколог.","При подготовке к кольпоскопии нельзя использовать вагинальные таблетки, спреи и свечи. Исключение составляют только те средства, которые вам порекомендовал сам врач-гинеколог."]
["Анализ мочи по Зимницкому","При подготовке к кольпоскопии за несколько дней до ее проведения нельзя делать спринцевание, так как оно в данном случае будет небезопасно.","При подготовке к кольпоскопии за несколько дней до ее проведения нельзя делать спринцевание, так как оно в данном случае будет небезопасно."]
["Анализ мочи по Зимницкому","Объем мочи в каждой из 8 порций измеряется и записывается. Каждая порция мочи перемешивается и отбирается в отдельную вакуумную пробирку. Если в течение трех часов нет позывов к мочеиспусканию, пробирку оставляют пустой (в ночное время и во время сна будить пациента не стоит). В лабораторию доставляются все 8 пробирок, на каждой из них указать номер порции, объем выделенной мочи и интервал времени сбора мочи.","Объем мочи в каждой из 8 порций измеряется и записывается. Каждая порция мочи перемешивается и отбирается в отдельную вакуумную пробирку. Если в течение трех часов нет позывов к мочеиспусканию, пробирку оставляют пустой (в ночное время и во время сна будить пациента не стоит). В лабораторию доставляются все 8 пробирок, на каждой из них указать номер порции, объем выделенной мочи и интервал времени сбора мочи."]
[null,null,""]
["Анализ кала на я/г","За 1-2 дня до взятия кала на исследование не принимать слабительных средств, не делать клизмы. Кал собирается в пластиковый одноразовый контейнер. До сбора кала пациент должен предварительно помочиться в унитаз. Далее путем естественной дефекации в унитаз или подкладное судно собирают испражнения. Затем кал забирается ложечкой в контейнер не более 1/3 объема. Нельзя собирать кал вместе с мочой. Написать на этикетке емкости ФИО пациента и дату сбора материала.","За 1-2 дня до взятия кала на исследование не принимать слабительных средств, не делать клизмы. Кал собирается в пластиковый одноразовый контейнер. До сбора кала пациент должен предварительно помочиться в унитаз. Далее путем естественной дефекации в унитаз или подкладное судно собирают испражнения. Затем кал забирается ложечкой в контейнер не более 1/3 объема. Нельзя собирать кал вместе с мочой. Написать на этикетке емкости ФИО пациента и дату сбора материала."]
[null,null,""]
["Анализ кала на простейшие","За 1-2 дня до взятия кала на исследование не принимать слабительных средств, не делать клизмы. Кал собирается в пластиковый одноразовый контейнер. До сбора кала пациент должен предварительно помочиться в унитаз. Далее путем естественной дефекации в унитаз или подкладное судно собирают испражнения. Затем кал забирается ложечкой в контейнер не более 1/3 объема. Нельзя собирать кал вместе с мочой. Написать на этикетке емкости ФИО пациента и дату сбора материала.","За 1-2 дня до взятия кала на исследование не принимать слабительных средств, не делать клизмы. Кал собирается в пластиковый одноразовый контейнер. До сбора кала пациент должен предварительно помочиться в унитаз. Далее путем естественной дефекации в унитаз или подкладное судно собирают испражнения. Затем кал забирается ложечкой в контейнер не более 1/3 объема. Нельзя собирать кал вместе с мочой. Написать на этикетке емкости ФИО пациента и дату сбора материала."]
[null,null,""]
["Анализ кала на скрытую кровь","Кал собирается в пластиковый одноразовый контейнер. В предшествующие анализу три дня ИСКЛЮЧИТЬ из диеты мясо, рыбу, зеленые овощи, помидоры, а также лекарства, содержащие металлы (железо, медь), так как все эти вещества могут давать ложноположительную реакцию на скрытую кровь.","Кал собирается в пластиковый одноразовый контейнер. В предшествующие анализу три дня ИСКЛЮЧИТЬ из диеты мясо, рыбу, зеленые овощи, помидоры, а также лекарства, содержащие металлы (железо, медь), так как все эти вещества могут давать ложноположительную реакцию на скрытую кровь."]
[null,null,""]
["Копрограмма","Кал собирается в пластиковый одноразовый контейнер. Перед исследованием не рекомендуется принимать медикаментозные препараты, оказывающие влияние на перистальтику кишечника, препараты железа (при анемии), бария, висмута, различных веществ, обладающих красящими свойствами. Нельзя накануне анализа делать клизмы, принимать вазелиновое и касторовое масла, ставить свечи. В кале не должны присутствовать посторонние примеси, к примеру, моча.","Кал собирается в пластиковый одноразовый контейнер. Перед исследованием не рекомендуется принимать медикаментозные препараты, оказывающие влияние на перистальтику кишечника, препараты железа (при анемии), бария, висмута, различных веществ, обладающих красящими свойствами. Нельзя накануне анализа делать клизмы, принимать вазелиновое и касторовое масла, ставить свечи. В кале не должны присутствовать посторонние примеси, к примеру, моча."]
[null,null,""]
["Соскоба на энтеробиоз","Материал для исследования забирают утром до проведения гигиенических процедур (подмывание, душ) и до дефекации. Материалом для исследования на энтеробиоз является соскоб с перианальных складок. Соскоб с перианальных складок и ануса берут лаборанты.","Материал для исследования забирают утром до проведения гигиенических процедур (подмывание, душ) и до дефекации. Материалом для исследования на энтеробиоз является соскоб с перианальных складок. Соскоб с перианальных складок и ануса берут лаборанты."]